bitfinex-derivatives/quotes_SOLF0:USTF0_20260114
["timestamp","ask_amount","ask_price","bid_price","bid_amount"]
[1768398936246,4.84251307,144.16,144.11,6.2473]
[1768398936443,4.84251307,144.16,144.12,81.98]
[1768398940551,4.84251307,144.16,144.1,6.2479]
[1768398940744,4.84251307,144.16,144.11,81.98]
[1768398945254,11.08811307,144.16,144.11,81.98]
[1768398955157,11.08811307,144.16,144.12,81.98]
[1768398958061,6.2456,144.16,144.12,81.98]
[1768398962263,7.9574126,144.2,144.12,81.98]
[1768398962463,6.10801108,144.2,144.12,83.82940152]
[1768398963364,6.2442,144.19,144.12,90.07650152]
[1768398963557,6.10801108,144.2,144.12,81.98]
[1768398963758,6.10801108,144.2,144.15,0.05111058]
[1768398964860,6.2447,144.18,144.15,0.05111058]
[1768398978074,12.35271108,144.18,144.15,0.05111058]
[1768398978972,6.10801108,144.18,144.15,0.05111058]
[1768398979267,12.35311108,144.17,144.14,70.8185]
[1768398979473,12.35311108,144.17,144.14,60.0222]
[1768398979674,12.35311108,144.17,144.14,38.3542]
[1768398980176,12.35311108,144.17,144.12,2.70397004]
[1768398980378,12.35311108,144.17,144.13,81.98]
[1768398980984,12.35311108,144.17,144.12,2.70397004]
[1768398981473,12.35311108,144.17,144.13,81.98]
[1768398982681,12.35311108,144.17,144.12,2.70397004]
[1768398982874,12.35311108,144.17,144.13,81.98]
[1768398988987,0.05324365,144.18,144.13,85.47163281]
[1768398990989,6.7193435,144.18,144.13,85.47163281]
[1768398993785,12.9640435,144.18,144.13,85.47163281]
[1768398998295,6.7193435,144.18,144.12,81.96]
[1768398998792,6.66609985,144.18,144.12,81.96]
[1768398999094,6.66609985,144.17,144.07,2.88905473]
[1768398999403,6.71116454,144.16,144.08,81.96]
[1768398999605,6.66609985,144.16,144.08,81.96]
[1768398999900,6.66609985,144.16,144.11,0.04691921]
[1768399000090,6.71495669,144.13,144.06,6.2494]
[1768399000293,6.71495669,144.13,144.07,82.53434012]
[1768399000694,6.71495669,144.13,144.08,0.57434012]
[1768399004297,6.71495669,144.13,144.08,82.55434012]
[1768399005695,12.96185669,144.13,144.08,82.55434012]
[1768399007203,12.91359985,144.12,144.04,19.5614111]
[1768399007406,12.91359985,144.12,144.06,0.19623184]
[1768399007703,6.66609985,144.12,144.06,0.19623184]
[1768399008005,6.2469,144.13,144.06,0.19623184]
[1768399008206,0.05201896,144.1,144.06,0.19623184]
[1768399010307,0.05201896,144.1,144.05,88.2303]
[1768399011814,6.2473,144.12,144.05,88.2303]
[1768399012916,0.05086614,144.1,144.05,88.2303]
[1768399018017,0.05086614,144.1,144.05,6.2503]
[1768399018220,0.05086614,144.1,144.06,82.0]
[1768399018920,0.05086614,144.1,144.06,88.2498]
[1768399020725,0.05086614,144.1,144.06,82.0]
[1768399022723,0.05086614,144.1,144.05,6.2503]
[1768399022919,0.05086614,144.1,144.07,82.0]
[1768399027726,0.05086614,144.1,144.05,6.2501]
[1768399028026,0.05086614,144.1,144.07,82.0]
[1768399030227,0.05086614,144.1,144.05,88.2502]
[1768399033624,0.05086614,144.1,144.04,22.63476835]
[1768399033821,0.05086614,144.1,144.04,104.63476835]
[1768399034017,3.05954248,144.13,144.05,1.82233914]
[1768399034223,100.02805473,144.19,144.07,1.82233914]
[1768399034422,100.02805473,144.19,144.09,1.75566658]
[1768399034824,6.246,144.15,144.09,1.75566658]
[1768399036227,13.09473921,144.15,144.09,1.75566658]
[1768399045438,6.84873921,144.15,144.09,1.75566658]
[1768399045833,6.84873921,144.15,144.1,1.59222674]
[1768399046031,5.64677711,144.17,144.1,1.59222674]
[1768399047840,5.64677711,144.17,144.11,6.2476]
[1768399050041,5.64677711,144.17,144.1,1.59222674]
[1768399051842,5.64677711,144.17,144.1,7.84022674]
[1768399056246,5.64677711,144.17,144.11,7.95211461]
[1768399067950,5.64677711,144.17,144.11,1.70471461]
[1768399069052,5.64677711,144.16,144.11,1.70471461]
[1768399071950,1.84979154,144.18,144.12,8.09175862]
[1768399071951,6.11127018,144.18,144.12,8.09175862]
[1768399072158,6.11127018,144.18,144.13,1.84465862]
[1768399072455,6.11127018,144.2,144.13,1.84465862]
[1768399073455,6.11127018,144.2,144.14,6.2463]
[1768399073850,6.11127018,144.2,144.14,8.10671908]
[1768399074746,6.11127018,144.2,144.15,1.8681638]
[1768399075659,6.11127018,144.2,144.15,8.1139638]
[1768399077759,6.11127018,144.22,144.16,8.13606832]
[1768399086168,6.11127018,144.24,144.18,1.99135267]
[1768399087872,6.11127018,144.24,144.18,8.23585267]
[1768399092686,6.2407,144.28,144.2,1.99330351]
[1768399092876,6.11127018,144.27,144.21,1.99330351]
[1768399094884,6.11127018,144.27,144.22,6.2428]
[1768399095879,6.11127018,144.27,144.21,1.99330351]
[1768399097784,6.11127018,144.27,144.2,88.1835]
[1768399098584,6.11127018,144.27,144.2,90.2130589]
[1768399099682,6.11127018,144.27,144.21,6.2433]
[1768399100887,6.11127018,144.27,144.2,83.9695589]
[1768399101088,6.11127018,144.27,144.19,6.244]
[1768399101886,6.11127018,144.27,144.19,8.30004719]
[1768399102784,6.07726462,144.26,144.19,8.30004719]
[1768399106579,6.07726462,144.26,144.2,6.2438]
[1768399106789,6.07726462,144.27,144.21,2.08280315]
[1768399107782,6.07726462,144.27,144.21,8.32610315]
[1768399110884,6.07726462,144.27,144.21,6.2433]
[1768399112591,6.07726462,144.26,144.2,2.10805741]
[1768399112791,6.07726462,144.25,144.19,8.35683556]
[1768399113293,6.07726462,144.25,144.2,6.2436]
[1768399115695,6.07726462,144.27,144.2,2.1272364]
[1768399116293,6.07726462,144.29,144.21,2.1272364]
[1768399120097,6.07726462,144.29,144.19,2.14554929]
[1768399120698,6.07726462,144.29,144.21,2.14999681]
[1768399124299,6.07726462,144.29,144.2,88.1635]
[1768399124496,6.07726462,144.29,144.2,6.2435]
[1768399125704,6.07726462,144.28,144.2,6.2435]
[1768399126695,6.07726462,144.28,144.2,8.41912946]
[1768399127903,6.07726462,144.28,144.21,2.17973148]
[1768399130709,5.8647348,144.27,144.21,2.17973148]
[1768399133803,5.8647348,144.26,144.21,2.17973148]
[1768399133998,5.8647348,144.26,144.2,6.2435]
[1768399134206,5.8647348,144.26,144.2,8.45060599]
[1768399138514,5.8647348,144.26,144.22,0.04629199]
[1768399139015,6.2409,144.27,144.22,0.04629199]
[1768399141016,12.1056348,144.27,144.22,0.04629199]
[1768399141512,5.8647348,144.25,144.17,2.28214155]
[1768399142410,5.8647348,144.24,144.18,6.2446]
[1768399142915,0.04891317,144.22,144.18,6.2446]
[1768399143714,5.91364797,144.22,144.17,6.2451]
[1768399143917,5.91364797,144.22,144.15,234.79163308]
[1768399144614,5.91364797,144.22,144.16,6.2453]
[1768399144817,5.91364797,144.22,144.16,8.53755373]
[1768399145214,5.8647348,144.25,144.18,2.29225373]
[1768399146714,5.8647348,144.25,144.19,2.29880308]
[1768399147811,5.8647348,144.25,144.19,8.54300308]
[1768399149910,5.8647348,144.25,144.19,2.29880308]
[1768399152020,5.8647348,144.25,144.19,8.54300308]
[1768399154926,5.8647348,144.25,144.2,8.57068707]
[1768399161630,12.17664704,144.27,144.2,8.57068707]
[1768399161927,5.93594704,144.26,144.2,8.57068707]
[1768399168025,5.93594704,144.26,144.21,6.2433]
[1768399168327,5.93594704,144.26,144.21,8.61504921]
[1768399172239,5.93594704,144.28,144.22,6.2428]
[1768399172541,5.93594704,144.28,144.23,2.38548542]
[1768399173432,5.93594704,144.28,144.22,0.04657173]
[1768399175346,7.78287905,144.28,144.22,0.04657173]
[1768399175738,5.93594704,144.28,144.22,0.04657173]
[1768399175939,7.78287905,144.28,144.22,0.04657173]
[1768399177346,5.93594704,144.28,144.22,0.04657173]
[1768399177552,5.93594704,144.28,144.22,2.44502241]
[1768399177553,7.78287905,144.28,144.22,2.44502241]
[1768399177849,5.93594704,144.28,144.22,2.44502241]
[1768399178752,5.93594704,144.28,144.23,6.2425]
[1768399187866,5.93594704,144.31,144.22,0.04657173]
[1768399188166,5.93594704,144.32,144.25,2.42223898]
[1768399188761,5.93594704,144.32,144.27,0.04880406]
[1768399189869,12.17464704,144.32,144.27,0.04880406]
[1768399190168,5.93594704,144.31,144.27,0.04880406]
[1768399191359,6.2622369,144.3,144.23,8.67441145]
[1768399191559,6.31204785,144.3,144.23,8.67441145]
[1768399195274,6.31204785,144.3,144.24,2.43815637]
[1768399197078,6.2622369,144.29,144.23,6.2425]
[1768399197778,6.2622369,144.29,144.23,8.68668855]
[1768399198074,6.2622369,144.29,144.23,6.2425]
[1768399201275,0.04981095,144.3,144.24,8.69181526]
[1768399201480,6.31204785,144.3,144.24,8.69181526]
[1768399201671,6.2622369,144.3,144.24,8.69181526]
[1768399202273,0.04712707,144.28,144.24,8.69181526]
[1768399203778,6.30936397,144.28,144.22,90.61814349]
[1768399206971,6.30936397,144.28,144.23,6.2424]
[1768399208374,0.04712707,144.28,144.23,8.70525071]
[1768399210284,97.0353,144.34,144.25,2.46633133]
[1768399210285,6.2622369,144.33,144.25,2.46633133]
[1768399211380,6.2622369,144.32,144.25,2.46633133]
[1768399212284,6.2622369,144.32,144.25,8.70793133]
[1768399212780,6.2622369,144.31,144.25,6.2416]
[1768399213277,0.04473407,144.3,144.25,6.2416]
[1768399217981,0.04473407,144.3,144.24,4.32640881]
[1768399218986,0.04473407,144.3,144.24,10.56840881]
[1768399220387,5.9785376,144.3,144.24,10.56840881]
[1768399221182,5.9785376,144.3,144.24,8.7214768]
[1768399221380,6.46672498,144.29,144.24,2.4794768]
[1768399221590,6.46672498,144.29,144.22,90.64279819]
[1768399221881,6.46672498,144.29,144.23,2.50029819]
[1768399222489,6.46672498,144.31,144.24,2.50175447]
[1768399222686,6.46672498,144.31,144.25,0.04474253]
[1768399222988,6.24,144.29,144.25,0.04474253]
[1768399226884,6.46672498,144.3,144.25,0.04474253]
[1768399227487,6.46672498,144.32,144.26,2.50878878]
[1768399228887,6.46672498,144.32,144.26,8.74988878]
[1768399229190,6.46672498,144.32,144.26,6.2411]
[1768399235997,6.46672498,144.32,144.25,2.56017081]
[1768399236691,6.46672498,144.31,144.25,0.04474253]
[1768399237894,6.46672498,144.29,144.25,0.04474253]
[1768399238401,6.46672498,144.27,144.21,163.57739455]
[1768399239195,0.04916627,144.28,144.23,2.56764818]
[1768399239805,0.04916627,144.28,144.24,2.56884479]
[1768399240290,0.04916627,144.28,144.25,2.57002765]
[1768399240493,6.46672498,144.31,144.25,2.61557364]
[1768399241587,12.70572498,144.31,144.25,2.61557364]
[1768399241992,6.46672498,144.3,144.25,0.04554599]
[1768399242597,6.46672498,144.3,144.25,2.61789877]
[1768399244104,6.239,144.31,144.25,2.61789877]
[1768399244904,6.46672498,144.32,144.25,2.61789877]
[1768399245199,6.46672498,144.32,144.26,2.56433279]
[1768399245401,6.46672498,144.34,144.26,2.56433279]
[1768399245705,12.70452498,144.34,144.26,2.56433279]
[1768399246201,6.46672498,144.33,144.26,8.80543279]
[1768399246501,6.46672498,144.33,144.29,0.04899901]
[1768399252506,6.46672498,144.33,144.27,6.2406]
[1768399252702,6.46480775,144.31,144.27,6.2406]
[1768399255802,0.05110985,144.32,144.27,6.2406]
[1768399260017,0.05110985,144.32,144.28,8.77955137]
[1768399264331,0.05110985,144.32,144.29,2.51599557]
[1768399264524,6.46480775,144.35,144.29,2.51599557]
[1768399264919,6.46480775,144.35,144.31,6.2388]
[1768399265325,6.46480775,144.35,144.29,2.56756266]
[1768399266524,6.46480775,144.37,144.29,2.56756266]
[1768399266723,6.46480775,144.39,144.31,2.50706291]
[1768399267132,6.46480775,144.39,144.33,8.74476291]
[1768399267431,6.46480775,144.39,144.34,0.04536785]
[1768399267830,103.49300775,144.35,144.24,2.54804124]
[1768399268023,6.46480775,144.33,144.23,2.54804124]
[1768399269332,0.04866759,144.29,144.23,2.54804124]
[1768399270031,0.04866759,144.29,144.25,6.2415]
[1768399270734,6.46480775,144.31,144.26,6.28477955]
[1768399271135,6.46480775,144.33,144.26,8.81995241]
[1768399271334,6.46480775,144.35,144.28,6.2402]
[1768399271534,6.46480775,144.35,144.28,8.77118156]
[1768399272136,6.46480775,144.35,144.3,0.04923632]
[1768399273041,6.46480775,144.37,144.3,2.57607473]
[1768399273837,6.46480775,144.37,144.31,6.2389]
[1768399276536,6.46480775,144.37,144.3,2.57607473]
[1768399277437,6.46480775,144.37,144.3,0.04923632]
[1768399280742,6.46480775,144.37,144.3,6.28863632]
[1768399285744,6.46480775,144.37,144.3,0.04923632]
[1768399286445,7.84480775,144.37,144.26,2.51822669]
[1768399286642,84.76204215,144.38,144.26,2.51822669]
[1768399286643,6.42430797,144.33,144.26,8.75912669]
[1768399287848,6.47325127,144.31,144.26,6.2409]
[1768399288749,6.47325127,144.31,144.25,81.88]
[1768399289450,6.42430797,144.34,144.25,2.56271361]
[1768399289855,6.42430797,144.34,144.27,0.04697408]
[1768399290257,6.42430797,144.34,144.28,6.2403]
[1768399294454,6.42430797,144.34,144.28,8.78905208]
[1768399298461,81.88,144.34,144.3,0.04500358]
[1768399298664,6.2369,144.36,144.3,0.04500358]
[1768399298864,81.88,144.35,144.3,0.04500358]
[1768399302169,81.88,144.34,144.3,6.28440358]
[1768399302362,81.88,144.33,144.3,6.28440358]
[1768399302960,81.88,144.35,144.3,6.28440358]
[1768399307675,1.84495112,144.38,144.32,6.2385]
[1768399307869,8.08085112,144.39,144.32,6.2385]
[1768399308059,81.88,144.38,144.32,6.2385]
[1768399308260,81.88,144.37,144.32,6.2385]
[1768399308565,81.88,144.37,144.34,0.04831269]
[1768399309273,81.88,144.36,144.34,0.04831269]
[1768399309470,1.84495112,144.39,144.34,0.04831269]
[1768399309673,81.88,144.38,144.34,0.04831269]
[1768399311972,1.84495112,144.35,144.26,97.0828]
[1768399312170,81.86,144.34,144.26,97.0828]
[1768399312373,81.86,144.34,144.27,1.84495112]
[1768399312880,81.86,144.34,144.3,6.2392]
[1768399313583,109.4321,144.44,144.28,97.0701]
[1768399313876,1.84495112,144.38,144.31,0.05175878]
[1768399314079,81.86,144.37,144.32,6.2385]
[1768399314680,81.86,144.37,144.33,0.05041679]
[1768399317576,8.08055112,144.39,144.33,0.05041679]
[1768399317883,81.86,144.38,144.33,0.05041679]
[1768399318274,81.86,144.38,144.28,1.84495112]
[1768399318275,0.05239008,144.37,144.28,1.84495112]
[1768399318476,81.86,144.36,144.28,1.84495112]
[1768399319074,81.86,144.36,144.27,97.0752]
[1768399319586,0.05286338,144.33,144.27,97.0752]
[1768399319783,0.05286338,144.33,144.3,6.2392]
[1768399320184,81.86,144.36,144.3,6.2392]
[1768399320379,83.70495112,144.36,144.3,6.28884988]
[1768399321781,83.70495112,144.36,144.3,0.04964988]
[1768399321982,1.84495112,144.34,144.24,98.94275112]
[1768399322172,1.84495112,144.34,144.24,1.84495112]
[1768399322173,1.8942747,144.34,144.24,1.84495112]
[1768399322379,1.8942747,144.34,144.26,6.241]
[1768399322578,96.9951,144.4,144.25,97.09]
[1768399322795,1.84495112,144.36,144.25,98.93495112]
[1768399323084,81.86,144.35,144.25,98.93495112]
[1768399323278,83.70495112,144.35,144.25,98.93495112]
[1768399323479,0.0491012,144.32,144.25,98.93495112]
[1768399323785,0.0491012,144.32,144.28,6.2402]
[1768399324281,81.86,144.36,144.28,98.4499]
[1768399324484,81.86,144.36,144.28,97.0699]
[1768399325176,22.02586299,144.44,144.28,97.0699]
[1768399325177,1.84495112,144.38,144.28,97.0699]
[1768399325382,81.86,144.37,144.28,97.0699]
[1768399325682,81.86,144.37,144.31,6.28812609]
[1768399325983,1.84495112,144.38,144.31,6.28812609]
[1768399326190,81.86,144.37,144.31,6.28812609]
[1768399326374,1.84495112,144.38,144.31,6.28812609]
[1768399326579,81.86,144.37,144.31,6.28812609]
[1768399326882,83.70495112,144.38,144.31,6.28812609]
[1768399329687,1.84495112,144.38,144.31,6.28812609]
[1768399329985,83.70495112,144.38,144.31,6.28812609]
[1768399330488,1.84495112,144.38,144.31,6.28812609]
[1768399330691,83.70495112,144.38,144.31,6.28812609]
[1768399332893,81.86,144.38,144.32,6.2385]
[1768399333088,1.84495112,144.39,144.32,6.2385]
[1768399333297,1.84495112,144.48,144.38,97.0047]
[1768399333993,1.84495112,144.48,144.42,0.04497991]
[1768399334393,88.0914,144.49,144.42,0.04497991]
[1768399334394,96.8951,144.55,144.42,0.04497991]
[1768399334589,1.84495112,144.49,144.42,0.04497991]
[1768399334789,1.84495112,144.49,144.43,6.2337]
[1768399335294,1.84495112,144.49,144.45,0.04494921]
[1768399341205,96.8505,144.62,144.47,96.9431]
[1768399341406,315.08520827,144.63,144.49,1.84495112]
[1768399341596,1.84495112,144.59,144.49,1.84495112]
[1768399342094,1.84495112,144.59,144.53,0.04563989]
[1768399342292,81.84,144.58,144.53,0.04563989]
[1768399342700,81.84,144.57,144.53,0.04563989]
[1768399342902,218.24720827,144.63,144.53,0.04563989]
[1768399343206,1.84495112,144.6,144.51,96.9138]
[1768399343402,218.24720827,144.63,144.54,6.2289]
[1768399343594,1.84495112,144.62,144.57,0.04821324]
[1768399343798,83.66495112,144.62,144.57,0.04821324]
[1768399344196,1.84495112,144.62,144.57,0.04821324]
[1768399344497,81.82,144.61,144.57,0.04821324]
[1768399344698,81.82,144.6,144.57,0.04821324]
[1768399345301,83.66495112,144.6,144.57,0.04821324]
[1768399345707,83.70862067,144.6,144.54,6.2289]
[1768399346407,83.70862067,144.6,144.55,6.2285]
[1768399349508,81.86366955,144.6,144.55,6.2285]
[1768399350307,81.86366955,144.6,144.56,6.2279]
[1768399352510,0.04366955,144.6,144.56,6.2279]
[1768399352711,81.76,144.59,144.56,6.2279]
[1768399353408,0.04366955,144.6,144.56,6.2279]
[1768399353602,218.24720827,144.63,144.56,96.92575155]
[1768399353800,81.76,144.62,144.56,96.92575155]
[1768399354107,218.24720827,144.63,144.56,96.92575155]
[1768399354311,81.76,144.62,144.56,96.92575155]
[1768399354715,81.76,144.62,144.59,6.2268]
[1768399355115,81.76,144.62,144.56,96.92575155]
[1768399355410,81.76,144.61,144.58,6.2272]
[1768399356003,81.76,144.61,144.58,6.27429188]
[1768399356404,81.76,144.6,144.58,6.27429188]
[1768399356703,2.87157931,144.67,144.58,6.27429188]
[1768399356908,81.76,144.66,144.58,6.2272]
[1768399357701,81.76,144.66,144.61,0.04578813]
[1768399359512,81.74,144.65,144.61,0.04578813]
[1768399359710,2.87157931,144.67,144.61,0.04578813]
[1768399359912,81.74,144.66,144.61,0.04578813]
[1768399361116,81.74,144.66,144.6,6.2263]
[1768399361318,81.74,144.65,144.6,6.2263]
[1768399361516,81.74,144.64,144.56,96.8807]
[1768399361712,81.74,144.64,144.55,96.89]
[1768399362112,81.74,144.64,144.58,6.2273]
[1768399362916,81.74,144.63,144.56,96.8838]
[1768399363117,2.87157931,144.67,144.57,96.8772]
[1768399363318,0.04610852,144.62,144.57,96.8772]
[1768399363514,56.37688442,144.61,144.57,96.8772]
[1768399363818,0.04610852,144.62,144.56,96.8838]
[1768399364018,81.78610852,144.62,144.56,96.8838]
[1768399364821,81.78610852,144.62,144.59,6.2266]
[1768399365724,0.04610852,144.62,144.59,6.2266]
[1768399365923,0.04610852,144.62,144.55,96.89]
[1768399366720,0.04610852,144.62,144.59,96.8628]
[1768399366928,0.04610852,144.62,144.58,96.8702]
[1768399367621,0.04610852,144.62,144.57,96.8722]
[1768399367812,0.04610852,144.62,144.55,191.0872]
[1768399368013,0.04610852,144.62,144.59,0.04871292]
[1768399369227,81.76610852,144.62,144.59,0.04871292]
[1768399369416,81.76610852,144.62,144.58,6.2271]
[1768399369622,81.76610852,144.62,144.56,6.2279]
[1768399370123,81.76610852,144.62,144.54,96.891]
[1768399371926,81.76610852,144.62,144.57,6.2277]
[1768399372424,81.72,144.62,144.55,6.2283]
[1768399372927,0.05033096,144.61,144.55,6.2283]
[1768399373725,0.05033096,144.61,144.56,6.2281]
[1768399374026,0.05033096,144.61,144.55,96.89]
[1768399374325,81.72,144.64,144.55,96.89]
[1768399375124,2.87157931,144.66,144.55,96.89]
[1768399375424,9.09557931,144.66,144.58,6.2273]
[1768399375620,81.72,144.65,144.58,6.2273]
[1768399376129,0.04494252,144.63,144.58,6.2273]
[1768399378524,0.04494252,144.63,144.59,6.2268]
[1768399380431,0.04494252,144.63,144.56,96.8809]
[1768399381832,0.04494252,144.63,144.59,6.2269]
[1768399382734,0.04494252,144.63,144.61,6.226]
[1768399395037,0.04494252,144.63,144.57,81.72]
[1768399395844,0.04494252,144.63,144.58,6.227]
[1768399398037,0.04494252,144.63,144.59,6.2269]
[1768399399444,0.04494252,144.63,144.57,6.2275]
[1768399401643,0.04494252,144.63,144.55,6.2283]
[1768399402144,84.57157931,144.65,144.55,6.2283]
[1768399402648,0.05149472,144.6,144.56,6.2282]
[1768399404944,0.05149472,144.6,144.54,81.7]
[1768399405342,3.79104607,144.65,144.57,0.0532617]
[1768399405746,3.79104607,144.67,144.57,0.0532617]
[1768399405948,3.79104607,144.66,144.59,6.2269]
[1768399406748,3.79104607,144.65,144.57,6.2276]
[1768399406949,3.79104607,144.65,144.54,181.46387931]
[1768399407146,0.0526349,144.64,144.54,181.46387931]
[1768399407652,3.79104607,144.65,144.54,181.46387931]
[1768399408053,3.79104607,144.65,144.55,96.8884]
[1768399408446,3.79104607,144.65,144.59,6.2269]
[1768399408653,3.79104607,144.65,144.54,181.46387931]
[1768399409158,3.79104607,144.65,144.58,6.2273]
[1768399410861,0.04556154,144.63,144.58,6.2273]
[1768399411059,3.83660761,144.63,144.54,81.7]
[1768399411554,3.79104607,144.63,144.54,81.7]
[1768399411860,0.04682461,144.6,144.54,81.7]
[1768399412262,0.04682461,144.6,144.56,6.2282]
[1768399413658,0.04682461,144.6,144.5,99.79117931]
[1768399413859,0.04682461,144.6,144.51,81.72]
[1768399414165,3.79104607,144.62,144.57,0.04970696]
[1768399414371,3.79104607,144.62,144.51,81.72]
[1768399414866,3.79104607,144.61,144.54,6.2291]
[1768399416169,3.79104607,144.6,144.51,81.72]
[1768399417372,3.79104607,144.6,144.51,83.558926]
[1768399417576,3.79104607,144.6,144.51,81.72]
[1768399417762,0.04373532,144.57,144.52,6.2298]
[1768399418069,3.83478139,144.57,144.5,1.838926]
[1768399419769,3.83478139,144.57,144.51,6.2304]
[1768399423066,3.83478139,144.57,144.53,0.0437158]
[1768399426077,3.79104607,144.56,144.48,1.838926]
[1768399426270,6.27153532,144.57,144.48,1.838926]
[1768399426586,3.79104607,144.57,144.51,6.2302]
[1768399427576,0.04454688,144.55,144.51,6.2302]
[1768399435179,2.99433318,144.59,144.52,6.2298]
[1768399435381,2.99433318,144.59,144.5,1.838926]
[1768399435779,4.83325918,144.61,144.52,1.838926]
[1768399435980,4.83325918,144.61,144.53,6.2294]
[1768399436586,0.04473294,144.58,144.53,6.2294]
[1768399437880,117.5906,144.66,144.54,6.2289]
[1768399437881,2.99433318,144.62,144.54,6.2289]
[1768399439282,6.2257,144.62,144.54,6.2289]
[1768399439486,2.99433318,144.61,144.54,6.2289]
[1768399439991,2.99433318,144.6,144.52,1.838926]
[1768399440188,2.99433318,144.6,144.5,81.74]
[1768399440387,2.99433318,144.6,144.5,83.578926]
[1768399440781,0.0439671,144.56,144.5,83.578926]
[1768399441088,0.0439671,144.56,144.52,6.2299]
[1768399441387,9.22103318,144.6,144.52,8.068826]
[1768399441590,2.99433318,144.62,144.53,1.838926]
[1768399442189,2.99433318,144.62,144.53,8.068126]
[1768399442387,2.99433318,144.62,144.53,1.838926]
[1768399443788,2.99433318,144.62,144.54,6.2289]
[1768399444684,2.99433318,144.62,144.55,6.2286]
[1768399444890,2.99433318,144.62,144.53,1.838926]
[1768399445390,2.99433318,144.62,144.56,6.2281]
[1768399445990,2.99433318,144.63,144.57,6.2277]
[1768399446686,2.99433318,144.63,144.59,0.04449242]
[1768399455694,1.838926,144.65,144.59,0.04449242]
[1768399455695,2.99433318,144.65,144.59,0.04449242]
[1768399458303,2.99433318,144.65,144.6,6.2264]
[1768399458496,2.99433318,144.65,144.59,0.04449242]
[1768399459390,2.99433318,144.65,144.59,6.27139242]
[1768399461602,2.99433318,144.65,144.6,6.2264]
[1768399461998,2.99433318,144.65,144.59,0.04449242]
[1768399463401,2.99433318,144.65,144.6,6.2263]
[1768399463600,2.99433318,144.65,144.59,0.04449242]
[1768399464801,2.99433318,144.65,144.59,6.27139242]
[1768399465304,3.09453013,144.68,144.59,0.04449242]
[1768399465494,3.09453013,144.68,144.59,1.88341842]
[1768399465693,3.09453013,144.68,144.59,1.838926]
[1768399466106,3.09453013,144.68,144.62,0.04642054]
[1768399467810,3.09453013,144.68,144.64,6.2248]
[1768399468406,3.09453013,144.68,144.62,0.04642054]
[1768399469901,3.09453013,144.68,144.63,6.2251]
[1768399471502,227.44982541,144.71,144.63,1.838926]
[1768399471701,227.44982541,144.71,144.62,96.88572054]
[1768399471903,227.44982541,144.71,144.63,1.838926]
[1768399472109,3.09453013,144.7,144.61,81.7]
[1768399472309,3.09453013,144.7,144.61,83.538926]
[1768399472509,3.09453013,144.7,144.65,0.04896823]
[1768399476814,3.09453013,144.74,144.65,0.04896823]
[1768399477311,3.09453013,144.73,144.67,6.2235]
[1768399477613,3.09453013,144.73,144.68,0.04597457]
[1768399478412,3.09453013,144.73,144.68,6.26897457]
[1768399478718,3.09453013,144.75,144.68,0.04597457]
[1768399478918,3.09453013,144.75,144.68,6.26867457]
[1768399479213,3.09453013,144.75,144.66,96.8155]
[1768399479605,3.09453013,144.75,144.7,0.0487209]
[1768399480408,3.09453013,144.78,144.7,0.0487209]
[1768399480810,3.09453013,144.78,144.68,99.66733385]
[1768399481310,3.09453013,144.78,144.73,0.04556335]
[1768399482311,3.14120163,144.77,144.67,81.68]
[1768399482718,3.09453013,144.77,144.67,81.68]
[1768399482906,3.09453013,144.75,144.62,2.86773385]
[1768399483106,3.09453013,144.75,144.61,178.5261]
[1768399483107,3.09453013,144.74,144.61,178.5261]
[1768399483311,3.09453013,144.73,144.61,178.5261]
[1768399483710,0.04673739,144.7,144.66,6.2239]
[1768399484111,0.04673739,144.7,144.67,0.04891857]
[1768399484512,3.09453013,144.71,144.65,6.2242]
[1768399485012,3.09453013,144.69,144.61,84.14170128]
[1768399485208,3.09453013,144.69,144.62,2.46170128]
[1768399486114,0.04589199,144.67,144.62,2.46170128]
[1768399486318,0.04589199,144.67,144.61,87.9058]
[1768399486717,0.04589199,144.67,144.61,6.2258]
[1768399491019,0.04589199,144.67,144.61,8.68677847]
[1768399491822,0.04589199,144.67,144.62,2.46097847]
[1768399494226,0.04589199,144.67,144.62,8.68657847]
[1768399495519,0.04589199,144.67,144.63,2.46097847]
[1768399495926,3.1925271,144.71,144.63,2.46097847]
[1768399496122,3.1925271,144.71,144.65,8.68517847]
[1768399496319,84.8725271,144.74,144.66,2.46097847]
[1768399496520,3.1925271,144.73,144.66,2.46097847]
[1768399496827,0.04851418,144.69,144.66,2.46097847]
[1768399498024,103.6432,144.8,144.66,2.46097847]
[1768399498025,3.1925271,144.83,144.75,8.68067847]